[Event "November 21 Early 2023"]
[Site "https://www.chess.com"]
[Date "2023.11.21"]
[Round "8"]
[White "Quirke, Jeffrey"]
[Black "Jamal-Jamal-Jamal"]
[Result "0-1"]
[Board "137"]
[TimeControl "180+1"]
[WhiteFideId "2013029"]
[WhiteElo "2230"]
[BlackElo "2465"]
[WhiteTeam "USA"]
[WhiteClock "0:00:00"]
[BlackClock "0:00:16"]

1. e4 {[%clk 0:02:54]}  e6 {[%clk 0:02:59]} 2. Nf3 {[%clk 0:02:51]}  d5 {[%clk 0:02:59]} 3. e5 {[%clk 0:02:51]}  c5 {[%clk 0:02:59]} 4. b4 {[%clk 0:02:51]}  cxb4 {[%clk 0:02:58]} 5. d4 {[%clk 0:02:50]}  Ne7 {[%clk 0:02:56]} 6. a3 {[%clk 0:02:50]}  bxa3 {[%clk 0:02:56]} 7. Bd3 {[%clk 0:02:50]}  Nec6 {[%clk 0:02:56]} 8. O-O {[%clk 0:02:48]}  Nd7 {[%clk 0:02:55]} 9. Nxa3 {[%clk 0:02:47]}  Bxa3 {[%clk 0:02:55]} 10. Bxa3 {[%clk 0:02:47]}  f6 {[%clk 0:02:54]} 11. exf6 {[%clk 0:02:45]}  Qxf6 {[%clk 0:02:54]} 12. Re1 {[%clk 0:02:43]}  Nb6 {[%clk 0:02:33]} 13. h4 {[%clk 0:02:34]}  h6 {[%clk 0:02:31]} 14. h5 {[%clk 0:02:17]}  Bd7 {[%clk 0:02:12]} 15. c4 {[%clk 0:01:54]}  Nxc4 {[%clk 0:02:09]} 16. Bxc4 {[%clk 0:01:53]}  dxc4 {[%clk 0:02:10]} 17. d5 {[%clk 0:01:53]}  Nd8 {[%clk 0:01:55]} 18. dxe6 {[%clk 0:01:47]}  Nxe6 {[%clk 0:01:56]} 19. Bd6 {[%clk 0:01:08]}  a6 {[%clk 0:01:52]} 20. Qd5 {[%clk 0:00:51]}  Rf8 {[%clk 0:00:40]} 21. Qxb7 {[%clk 0:00:31]}  Rd8 {[%clk 0:00:27]} 22. Bxf8 {[%clk 0:00:21]}  Kxf8 {[%clk 0:00:26]} 23. Rad1 {[%clk 0:00:14]}  Bb5 {[%clk 0:00:21]} 24. Rxd8+ {[%clk 0:00:09]}  Nxd8 {[%clk 0:00:22]} 25. Ne5 {[%clk 0:00:00]}  c3 {[%clk 0:00:16]} 0-1

[Event "November 21 Early 2023"]
[Site "https://www.chess.com"]
[Date "2023.11.21"]
[Round "8"]
[White "Ghosh, Chanchal Kumer"]
[Black "Pourkashiyan, Atousa"]
[Result "0-1"]
[Board "138"]
[TimeControl "180+1"]
[WhiteFideId "10201858"]
[BlackFideId "12502014"]
[WhiteElo "2067"]
[BlackElo "2221"]
[WhiteTeam "BAN"]
[BlackTeam "USA"]
[WhiteClock "0:00:00"]
[BlackClock "0:00:42"]

1. e4 {[%clk 0:03:00]}  c5 {[%clk 0:02:51]} 2. Nf3 {[%clk 0:03:01]}  e6 {[%clk 0:02:52]} 3. d4 {[%clk 0:03:01]}  cxd4 {[%clk 0:02:52]} 4. Nxd4 {[%clk 0:03:02]}  a6 {[%clk 0:02:53]} 5. Bd3 {[%clk 0:03:02]}  Bc5 {[%clk 0:02:52]} 6. Nb3 {[%clk 0:03:01]}  Be7 {[%clk 0:02:52]} 7. Nc3 {[%clk 0:03:00]}  Nc6 {[%clk 0:02:51]} 8. O-O {[%clk 0:03:01]}  Nf6 {[%clk 0:02:50]} 9. Be3 {[%clk 0:03:01]}  O-O {[%clk 0:02:46]} 10. f4 {[%clk 0:03:01]}  d6 {[%clk 0:02:45]} 11. Rf3 {[%clk 0:02:58]}  Ng4 {[%clk 0:02:36]} 12. Rg3 {[%clk 0:02:27]}  Nxe3 {[%clk 0:02:35]} 13. Rxe3 {[%clk 0:02:27]}  Nb4 {[%clk 0:02:07]} 14. Rh3 {[%clk 0:02:20]}  Nxd3 {[%clk 0:02:06]} 15. cxd3 {[%clk 0:02:20]}  e5 {[%clk 0:02:04]} 16. f5 {[%clk 0:02:19]}  b5 {[%clk 0:01:53]} 17. Qh5 {[%clk 0:02:00]}  h6 {[%clk 0:01:50]} 18. Nd5 {[%clk 0:01:54]}  Bb7 {[%clk 0:01:50]} 19. Nxe7+ {[%clk 0:01:06]}  Qxe7 {[%clk 0:01:50]} 20. Rf1 {[%clk 0:01:03]}  Qf6 {[%clk 0:01:39]} 21. Rff3 {[%clk 0:00:59]}  Rac8 {[%clk 0:01:35]} 22. Rfg3 {[%clk 0:00:53]}  Kh7 {[%clk 0:01:13]} 23. Qe2 {[%clk 0:00:34]}  d5 {[%clk 0:01:08]} 24. Rh5 {[%clk 0:00:31]}  dxe4 {[%clk 0:01:05]} 25. dxe4 {[%clk 0:00:29]}  Rc4 {[%clk 0:01:02]} 26. Nd2 {[%clk 0:00:18]}  Rc1+ {[%clk 0:00:57]} 27. Kf2 {[%clk 0:00:18]}  Rc2 {[%clk 0:00:55]} 28. Kf3 {[%clk 0:00:14]}  Rd8 {[%clk 0:00:50]} 29. Rgh3 {[%clk 0:00:05]}  Rcxd2 {[%clk 0:00:46]} 30. Qe1 {[%clk 0:00:04]}  R8d3+ {[%clk 0:00:42]} 31. Kg4 {[%clk 0:00:00]}  Rxg2+ {[%clk 0:00:42]} 0-1

[Event "November 21 Early 2023"]
[Site "https://www.chess.com"]
[Date "2023.11.21"]
[Round "8"]
[White "dumbernugget"]
[Black "Sadubayev, Airat"]
[Result "0-1"]
[Board "139"]
[TimeControl "180+1"]
[BlackFideId "13713264"]
[WhiteElo "2180"]
[BlackElo "2137"]
[BlackTeam "KAZ"]
[WhiteClock "0:02:04"]
[BlackClock "0:01:40"]

1. d4 {[%clk 0:03:00]}  Nf6 {[%clk 0:02:59]} 2. c4 {[%clk 0:03:00]}  e6 {[%clk 0:02:59]} 3. Nc3 {[%clk 0:03:01]}  d5 {[%clk 0:02:58]} 4. cxd5 {[%clk 0:03:01]}  exd5 {[%clk 0:02:56]} 5. Bg5 {[%clk 0:03:01]}  c6 {[%clk 0:02:52]} 6. e3 {[%clk 0:03:01]}  Bf5 {[%clk 0:02:46]} 7. Bd3 {[%clk 0:02:55]}  Bxd3 {[%clk 0:02:42]} 8. Qxd3 {[%clk 0:02:55]}  Be7 {[%clk 0:02:42]} 9. Nf3 {[%clk 0:02:55]}  Nbd7 {[%clk 0:02:42]} 10. O-O {[%clk 0:02:54]}  O-O {[%clk 0:02:40]} 11. Rab1 {[%clk 0:02:55]}  h6 {[%clk 0:02:40]} 12. Bh4 {[%clk 0:02:55]}  Ne4 {[%clk 0:02:34]} 13. Bxe7 {[%clk 0:02:46]}  Qxe7 {[%clk 0:02:35]} 14. b4 {[%clk 0:02:43]}  b5 {[%clk 0:02:22]} 15. a4 {[%clk 0:02:31]}  Nxc3 {[%clk 0:02:05]} 16. Qxc3 {[%clk 0:02:29]}  Rfc8 {[%clk 0:01:54]} 17. axb5 {[%clk 0:02:29]}  cxb5 {[%clk 0:01:53]} 18. Qb3 {[%clk 0:02:29]}  Nb6 {[%clk 0:01:51]} 19. Ne5 {[%clk 0:02:27]}  Nc4 {[%clk 0:01:51]} 20. Nxc4 {[%clk 0:02:24]}  bxc4 {[%clk 0:01:52]} 21. Qc3 {[%clk 0:02:20]}  Rab8 {[%clk 0:01:51]} 22. Rb2 {[%clk 0:02:19]}  Rb5 {[%clk 0:01:50]} 23. h3 {[%clk 0:02:18]}  Rcb8 {[%clk 0:01:50]} 24. Ra1 {[%clk 0:02:15]}  Rxb4 {[%clk 0:01:43]} 25. Rxb4 {[%clk 0:02:14]}  Rxb4 {[%clk 0:01:41]} 26. Rxa7 {[%clk 0:02:04]}  Rb1+ {[%clk 0:01:40]} 0-1

[Event "November 21 Early 2023"]
[Site "https://www.chess.com"]
[Date "2023.11.21"]
[Round "8"]
[White "Eggleston, Thomas A"]
[Black "Herzog2012"]
[Result "0-1"]
[Board "140"]
[TimeControl "180+1"]
[WhiteFideId "412139"]
[WhiteElo "2169"]
[BlackElo "2529"]
[WhiteTeam "ENG"]
[WhiteClock "0:00:00"]
[BlackClock "0:00:04"]

1. e4 {[%clk 0:03:00]}  c5 {[%clk 0:02:58]} 2. Nf3 {[%clk 0:03:01]}  Nc6 {[%clk 0:02:59]} 3. Bc4 {[%clk 0:03:01]}  d6 {[%clk 0:02:55]} 4. O-O {[%clk 0:03:00]}  Nf6 {[%clk 0:02:55]} 5. Re1 {[%clk 0:02:59]}  Bg4 {[%clk 0:02:54]} 6. h3 {[%clk 0:02:57]}  Bh5 {[%clk 0:02:49]} 7. c3 {[%clk 0:02:56]}  e6 {[%clk 0:02:44]} 8. d3 {[%clk 0:02:51]}  Be7 {[%clk 0:02:37]} 9. Bb3 {[%clk 0:02:51]}  O-O {[%clk 0:02:36]} 10. Nbd2 {[%clk 0:02:50]}  d5 {[%clk 0:02:35]} 11. e5 {[%clk 0:02:49]}  Nd7 {[%clk 0:02:34]} 12. g4 {[%clk 0:02:46]}  Bg6 {[%clk 0:02:33]} 13. Nf1 {[%clk 0:02:46]}  d4 {[%clk 0:02:23]} 14. Ng3 {[%clk 0:02:38]}  dxc3 {[%clk 0:01:51]} 15. bxc3 {[%clk 0:02:38]}  Nb6 {[%clk 0:01:44]} 16. Bc2 {[%clk 0:02:37]}  Nd5 {[%clk 0:01:44]} 17. Bd2 {[%clk 0:02:30]}  f6 {[%clk 0:01:40]} 18. Ne4 {[%clk 0:02:14]}  f5 {[%clk 0:01:32]} 19. gxf5 {[%clk 0:01:58]}  Bxf5 {[%clk 0:01:25]} 20. Kg2 {[%clk 0:01:48]}  Qe8 {[%clk 0:01:15]} 21. Ng3 {[%clk 0:01:46]}  Bg6 {[%clk 0:01:12]} 22. Ng5 {[%clk 0:01:42]}  Bxg5 {[%clk 0:01:09]} 23. Bxg5 {[%clk 0:01:42]}  Qf7 {[%clk 0:01:10]} 24. Qd2 {[%clk 0:01:26]}  Nxc3 {[%clk 0:01:05]} 25. Kg1 {[%clk 0:01:01]}  Nd4 {[%clk 0:01:00]} 26. Re3 {[%clk 0:00:52]}  Nf3+ {[%clk 0:00:53]} 27. Rxf3 {[%clk 0:00:51]}  Qxf3 {[%clk 0:00:54]} 28. Be3 {[%clk 0:00:46]}  Nd5 {[%clk 0:00:49]} 29. Bd1 {[%clk 0:00:40]}  Qf7 {[%clk 0:00:44]} 30. Bxc5 {[%clk 0:00:40]}  Qf4 {[%clk 0:00:29]} 31. Qe1 {[%clk 0:00:29]}  Rfc8 {[%clk 0:00:25]} 32. d4 {[%clk 0:00:24]}  b6 {[%clk 0:00:17]} 33. Ba3 {[%clk 0:00:20]}  Qxd4 {[%clk 0:00:14]} 34. Rc1 {[%clk 0:00:18]}  Rxc1 {[%clk 0:00:09]} 35. Bxc1 {[%clk 0:00:19]}  Qc3 {[%clk 0:00:09]} 36. Bd2 {[%clk 0:00:18]}  Qd4 {[%clk 0:00:08]} 37. h4 {[%clk 0:00:18]}  Qxh4 {[%clk 0:00:06]} 38. Bb3 {[%clk 0:00:13]}  Rf8 {[%clk 0:00:03]} 39. Bxd5 {[%clk 0:00:12]}  exd5 {[%clk 0:00:03]} 40. e6 {[%clk 0:00:12]}  Re8 {[%clk 0:00:04]} 41. Bb4 {[%clk 0:00:10]}  Be4 {[%clk 0:00:02]} 42. e7 {[%clk 0:00:07]}  Rxe7 {[%clk 0:00:02]} 43. Bxe7 {[%clk 0:00:06]}  Qxe7 {[%clk 0:00:03]} 44. f3 {[%clk 0:00:04]}  Qc5+ {[%clk 0:00:02]} 45. Kh2 {[%clk 0:00:04]}  Bg6 {[%clk 0:00:03]} 46. Qe6+ {[%clk 0:00:03]}  Bf7 {[%clk 0:00:03]} 47. Qe5 {[%clk 0:00:03]}  Qf2+ {[%clk 0:00:03]} 48. Kh3 {[%clk 0:00:03]}  h6 {[%clk 0:00:03]} 49. Kg4 {[%clk 0:00:03]}  Kh7 {[%clk 0:00:03]} 50. Nf5 {[%clk 0:00:03]}  Qg2+ {[%clk 0:00:03]} 51. Kf4 {[%clk 0:00:02]}  Qh2+ {[%clk 0:00:04]} 52. Kg4 {[%clk 0:00:00]}  Qxe5 {[%clk 0:00:04]} 0-1

[Event "November 21 Early 2023"]
[Site "https://www.chess.com"]
[Date "2023.11.21"]
[Round "8"]
[White "Kovalyov_Eduard"]
[Black "KorolDimitriy75"]
[Result "1-0"]
[Board "142"]
[TimeControl "180+1"]
[WhiteElo "2497"]
[BlackElo "2336"]
[WhiteClock "0:00:20"]
[BlackClock "0:00:00"]

1. Nf3 {[%clk 0:02:54]}  c5 {[%clk 0:03:00]} 2. g3 {[%clk 0:02:54]}  g6 {[%clk 0:02:59]} 3. Bg2 {[%clk 0:02:55]}  Bg7 {[%clk 0:02:59]} 4. O-O {[%clk 0:02:55]}  Nc6 {[%clk 0:03:00]} 5. d3 {[%clk 0:02:56]}  e5 {[%clk 0:03:00]} 6. c4 {[%clk 0:02:56]}  Nge7 {[%clk 0:03:00]} 7. Nc3 {[%clk 0:02:57]}  O-O {[%clk 0:03:00]} 8. a3 {[%clk 0:02:56]}  d6 {[%clk 0:03:01]} 9. Rb1 {[%clk 0:02:56]}  f5 {[%clk 0:02:59]} 10. Ne1 {[%clk 0:02:55]}  Rb8 {[%clk 0:02:49]} 11. Nc2 {[%clk 0:02:55]}  Be6 {[%clk 0:02:43]} 12. Ne3 {[%clk 0:02:55]}  Qd7 {[%clk 0:02:39]} 13. Ned5 {[%clk 0:02:54]}  Rbe8 {[%clk 0:02:32]} 14. b4 {[%clk 0:02:54]}  b6 {[%clk 0:02:32]} 15. e3 {[%clk 0:02:49]}  g5 {[%clk 0:02:15]} 16. f4 {[%clk 0:02:47]}  exf4 {[%clk 0:02:14]} 17. gxf4 {[%clk 0:02:46]}  g4 {[%clk 0:02:14]} 18. Bd2 {[%clk 0:02:42]}  h5 {[%clk 0:02:10]} 19. Qe1 {[%clk 0:02:33]}  Ng6 {[%clk 0:02:08]} 20. Qf2 {[%clk 0:02:24]}  h4 {[%clk 0:02:01]} 21. Rfc1 {[%clk 0:02:21]}  h3 {[%clk 0:01:41]} 22. Bh1 {[%clk 0:02:20]}  Nce7 {[%clk 0:01:34]} 23. Nxe7+ {[%clk 0:01:41]}  Nxe7 {[%clk 0:01:32]} 24. Nd5 {[%clk 0:01:24]}  Bxd5 {[%clk 0:01:15]} 25. cxd5 {[%clk 0:01:22]}  Ng6 {[%clk 0:01:16]} 26. Bc3 {[%clk 0:01:15]}  Qe7 {[%clk 0:01:05]} 27. Bxg7 {[%clk 0:01:11]}  Kxg7 {[%clk 0:01:06]} 28. Re1 {[%clk 0:01:11]}  Qf6 {[%clk 0:00:59]} 29. bxc5 {[%clk 0:01:08]}  dxc5 {[%clk 0:00:58]} 30. a4 {[%clk 0:00:59]}  Re7 {[%clk 0:00:54]} 31. Re2 {[%clk 0:00:42]}  Rfe8 {[%clk 0:00:53]} 32. Rbe1 {[%clk 0:00:42]}  Qc3 {[%clk 0:00:50]} 33. e4 {[%clk 0:00:39]}  Qxd3 {[%clk 0:00:34]} 34. e5 {[%clk 0:00:39]}  Qc4 {[%clk 0:00:22]} 35. d6 {[%clk 0:00:37]}  Re6 {[%clk 0:00:14]} 36. Rf1 {[%clk 0:00:33]}  Qxa4 {[%clk 0:00:12]} 37. Bd5 {[%clk 0:00:33]}  Qd7 {[%clk 0:00:12]} 38. Ra1 {[%clk 0:00:25]}  Rf8 {[%clk 0:00:09]} 39. Rea2 {[%clk 0:00:25]}  Rf7 {[%clk 0:00:03]} 40. Rxa7 {[%clk 0:00:22]}  Qxa7 {[%clk 0:00:02]} 41. Rxa7 {[%clk 0:00:22]}  Rxa7 {[%clk 0:00:03]} 42. Bxe6 {[%clk 0:00:20]}  Ra1+ {[%clk 0:00:02]} 43. Qf1 {[%clk 0:00:21]}  Rxf1+ {[%clk 0:00:02]} 44. Kxf1 {[%clk 0:00:22]}  Nxf4 {[%clk 0:00:02]} 45. Bxf5 {[%clk 0:00:21]}  Kf8 {[%clk 0:00:00]} 46. e6 {[%clk 0:00:20]} 1-0

[Event "November 21 Early 2023"]
[Site "https://www.chess.com"]
[Date "2023.11.21"]
[Round "8"]
[White "ChessLebaneseSalah"]
[Black "Der_Balak_3Halak"]
[Result "1-0"]
[Board "145"]
[TimeControl "180+1"]
[WhiteElo "2391"]
[BlackElo "2315"]
[WhiteClock "0:01:03"]
[BlackClock "0:00:18"]

1. e4 {[%clk 0:03:00]}  e6 {[%clk 0:02:35]} 2. d4 {[%clk 0:03:00]}  d5 {[%clk 0:02:34]} 3. e5 {[%clk 0:02:58]}  c5 {[%clk 0:02:35]} 4. c3 {[%clk 0:02:58]}  Nc6 {[%clk 0:02:34]} 5. Nf3 {[%clk 0:02:58]}  Qb6 {[%clk 0:02:34]} 6. Bd3 {[%clk 0:02:56]}  Bd7 {[%clk 0:02:31]} 7. O-O {[%clk 0:02:55]}  Rc8 {[%clk 0:02:25]} 8. dxc5 {[%clk 0:02:49]}  Bxc5 {[%clk 0:02:24]} 9. b4 {[%clk 0:02:50]}  Bf8 {[%clk 0:02:14]} 10. a4 {[%clk 0:02:49]}  Nge7 {[%clk 0:02:10]} 11. Na3 {[%clk 0:02:40]}  Ng6 {[%clk 0:02:08]} 12. Re1 {[%clk 0:02:39]}  Be7 {[%clk 0:02:04]} 13. Be3 {[%clk 0:02:36]}  Qd8 {[%clk 0:01:48]} 14. Nb5 {[%clk 0:02:25]}  Ncxe5 {[%clk 0:01:42]} 15. Nxe5 {[%clk 0:02:14]}  Nxe5 {[%clk 0:01:42]} 16. Nxa7 {[%clk 0:02:15]}  Nxd3 {[%clk 0:01:40]} 17. Nxc8 {[%clk 0:02:03]}  Nxe1 {[%clk 0:01:39]} 18. Nxe7 {[%clk 0:02:02]}  Nxg2 {[%clk 0:01:02]} 19. Nxd5 {[%clk 0:01:49]}  Nxe3 {[%clk 0:00:56]} 20. Nxe3 {[%clk 0:01:48]}  O-O {[%clk 0:00:54]} 21. Qd4 {[%clk 0:01:41]}  Qg5+ {[%clk 0:00:48]} 22. Qg4 {[%clk 0:01:41]}  Qf6 {[%clk 0:00:48]} 23. Qd4 {[%clk 0:01:29]}  Qg5+ {[%clk 0:00:30]} 24. Kf1 {[%clk 0:01:25]}  Rd8 {[%clk 0:00:26]} 25. Qg4 {[%clk 0:01:09]}  Qe5 {[%clk 0:00:23]} 26. Qh4 {[%clk 0:01:04]}  Qxc3 {[%clk 0:00:18]} 27. Qxd8+ {[%clk 0:01:03]} 1-0

[Event "November 21 Early 2023"]
[Site "https://www.chess.com"]
[Date "2023.11.21"]
[Round "8"]
[White "missponyo10"]
[Black "Sharafiev, Azat"]
[Result "0-1"]
[Board "148"]
[TimeControl "180+1"]
[BlackFideId "4186214"]
[WhiteElo "2195"]
[BlackElo "2306"]
[BlackTeam "RUS"]
[WhiteClock "0:01:02"]
[BlackClock "0:01:54"]

1. e4 {[%clk 0:03:00]}  c5 {[%clk 0:02:59]} 2. Nf3 {[%clk 0:03:00]}  d6 {[%clk 0:03:00]} 3. d4 {[%clk 0:03:00]}  cxd4 {[%clk 0:03:01]} 4. Nxd4 {[%clk 0:03:01]}  Nf6 {[%clk 0:03:01]} 5. Nc3 {[%clk 0:03:02]}  a6 {[%clk 0:03:01]} 6. f4 {[%clk 0:03:02]}  b5 {[%clk 0:02:47]} 7. a3 {[%clk 0:03:01]}  Bb7 {[%clk 0:02:47]} 8. Bd3 {[%clk 0:03:00]}  Nbd7 {[%clk 0:02:48]} 9. Nf3 {[%clk 0:02:58]}  g6 {[%clk 0:02:47]} 10. O-O {[%clk 0:02:58]}  Bg7 {[%clk 0:02:47]} 11. Kh1 {[%clk 0:02:57]}  O-O {[%clk 0:02:47]} 12. Qe1 {[%clk 0:02:56]}  Rc8 {[%clk 0:02:41]} 13. h3 {[%clk 0:02:50]}  Qc7 {[%clk 0:02:33]} 14. e5 {[%clk 0:02:23]}  dxe5 {[%clk 0:02:32]} 15. fxe5 {[%clk 0:02:17]}  Nd5 {[%clk 0:02:30]} 16. Bd2 {[%clk 0:01:56]}  Nxe5 {[%clk 0:02:20]} 17. Nxd5 {[%clk 0:01:33]}  Bxd5 {[%clk 0:02:20]} 18. Nxe5 {[%clk 0:01:33]}  Qxe5 {[%clk 0:02:20]} 19. Qxe5 {[%clk 0:01:26]}  Bxe5 {[%clk 0:02:21]} 20. c3 {[%clk 0:01:26]}  Rfd8 {[%clk 0:02:11]} 21. Bb1 {[%clk 0:01:15]}  Bxg2+ {[%clk 0:02:09]} 22. Kxg2 {[%clk 0:01:16]}  Rxd2+ {[%clk 0:02:10]} 23. Kg1 {[%clk 0:01:16]}  Rxb2 {[%clk 0:02:09]} 24. Be4 {[%clk 0:01:14]}  Rxc3 {[%clk 0:02:04]} 25. Rf3 {[%clk 0:01:12]}  Rxf3 {[%clk 0:02:00]} 26. Bxf3 {[%clk 0:01:12]}  Rb3 {[%clk 0:01:57]} 27. Rf1 {[%clk 0:01:12]}  Rxa3 {[%clk 0:01:57]} 28. Re1 {[%clk 0:01:08]}  Rxf3 {[%clk 0:01:56]} 29. Rxe5 {[%clk 0:01:08]}  b4 {[%clk 0:01:55]} 30. Rxe7 {[%clk 0:01:07]}  b3 {[%clk 0:01:55]} 31. Rb7 {[%clk 0:01:07]}  a5 {[%clk 0:01:55]} 32. Kg2 {[%clk 0:01:08]}  Rc3 {[%clk 0:01:55]} 33. Ra7 {[%clk 0:00:57]}  b2 {[%clk 0:01:55]} 34. Rxa5 {[%clk 0:00:58]}  b1=Q {[%clk 0:01:54]} 35. Ra8+ {[%clk 0:00:59]}  Kg7 {[%clk 0:01:54]} 36. Rg8+ {[%clk 0:01:00]}  Kxg8 {[%clk 0:01:52]} 37. h4 {[%clk 0:01:01]}  Qb2+ {[%clk 0:01:53]} 38. Kg1 {[%clk 0:01:02]}  Rc1# {[%clk 0:01:54]} 0-1

[Event "November 21 Early 2023"]
[Site "https://www.chess.com"]
[Date "2023.11.21"]
[Round "8"]
[White "SeLaPegoACualquiera"]
[Black "mkllnd1517"]
[Result "0-1"]
[Board "150"]
[TimeControl "180+1"]
[WhiteElo "2174"]
[BlackElo "2358"]
[WhiteClock "0:00:22"]
[BlackClock "0:00:26"]

1. e4 {[%clk 0:03:00]}  e6 {[%clk 0:02:59]} 2. d4 {[%clk 0:02:59]}  d5 {[%clk 0:03:00]} 3. exd5 {[%clk 0:02:58]}  exd5 {[%clk 0:03:01]} 4. Nf3 {[%clk 0:02:58]}  Nf6 {[%clk 0:03:01]} 5. Bd3 {[%clk 0:02:59]}  c5 {[%clk 0:03:01]} 6. O-O {[%clk 0:03:00]}  c4 {[%clk 0:03:01]} 7. Be2 {[%clk 0:03:00]}  Bd6 {[%clk 0:03:01]} 8. c3 {[%clk 0:03:00]}  O-O {[%clk 0:03:01]} 9. b3 {[%clk 0:03:01]}  cxb3 {[%clk 0:03:00]} 10. axb3 {[%clk 0:03:02]}  Nc6 {[%clk 0:03:00]} 11. Bg5 {[%clk 0:02:58]}  Re8 {[%clk 0:02:36]} 12. Re1 {[%clk 0:02:50]}  Bg4 {[%clk 0:02:18]} 13. Nbd2 {[%clk 0:02:45]}  Rc8 {[%clk 0:02:16]} 14. c4 {[%clk 0:02:40]}  a6 {[%clk 0:02:11]} 15. cxd5 {[%clk 0:02:24]}  Nb4 {[%clk 0:02:11]} 16. Nc4 {[%clk 0:02:14]}  Nbxd5 {[%clk 0:02:11]} 17. Nfe5 {[%clk 0:02:08]}  Nc3 {[%clk 0:01:55]} 18. Qc2 {[%clk 0:01:47]}  Nxe2+ {[%clk 0:01:50]} 19. Rxe2 {[%clk 0:01:44]}  Bxe2 {[%clk 0:01:51]} 20. Qxe2 {[%clk 0:01:38]}  b5 {[%clk 0:01:28]} 21. Ne3 {[%clk 0:01:12]}  Bxe5 {[%clk 0:01:20]} 22. dxe5 {[%clk 0:01:08]}  Rxe5 {[%clk 0:01:21]} 23. Qf3 {[%clk 0:00:51]}  Qb6 {[%clk 0:01:14]} 24. Qg3 {[%clk 0:00:38]}  Rec5 {[%clk 0:00:44]} 25. h4 {[%clk 0:00:33]}  Ne4 {[%clk 0:00:36]} 26. Qg4 {[%clk 0:00:28]}  Rc1+ {[%clk 0:00:31]} 27. Rxc1 {[%clk 0:00:27]}  Rxc1+ {[%clk 0:00:32]} 28. Kh2 {[%clk 0:00:27]}  Rh1+ {[%clk 0:00:26]} 29. Kxh1 {[%clk 0:00:24]}  Nxf2+ {[%clk 0:00:27]} 30. Kh2 {[%clk 0:00:24]}  Nxg4+ {[%clk 0:00:27]} 31. Nxg4 {[%clk 0:00:22]}  a5 {[%clk 0:00:26]} 0-1

[Event "November 21 Early 2023"]
[Site "https://www.chess.com"]
[Date "2023.11.21"]
[Round "8"]
[White "Pak, Yevgeniy"]
[Black "Elbebiber"]
[Result "0-1"]
[Board "152"]
[TimeControl "180+1"]
[WhiteFideId "14201712"]
[WhiteElo "2320"]
[BlackElo "2161"]
[WhiteTeam "KAZ"]
[WhiteClock "0:00:21"]
[BlackClock "0:00:31"]

1. e4 {[%clk 0:03:00]}  d5 {[%clk 0:02:57]} 2. exd5 {[%clk 0:03:00]}  Nf6 {[%clk 0:02:58]} 3. c4 {[%clk 0:02:58]}  e6 {[%clk 0:02:54]} 4. dxe6 {[%clk 0:02:57]}  Bxe6 {[%clk 0:02:45]} 5. d4 {[%clk 0:02:57]}  Bb4+ {[%clk 0:02:34]} 6. Bd2 {[%clk 0:02:47]}  Bxd2+ {[%clk 0:02:31]} 7. Qxd2 {[%clk 0:02:48]}  Qe7 {[%clk 0:02:30]} 8. Be2 {[%clk 0:02:46]}  Bxc4 {[%clk 0:02:21]} 9. Nf3 {[%clk 0:02:44]}  Qxe2+ {[%clk 0:02:18]} 10. Qxe2+ {[%clk 0:02:45]}  Bxe2 {[%clk 0:02:18]} 11. Kxe2 {[%clk 0:02:46]}  Nc6 {[%clk 0:02:17]} 12. Nc3 {[%clk 0:02:45]}  O-O-O {[%clk 0:02:16]} 13. Rhd1 {[%clk 0:02:39]}  Rhe8+ {[%clk 0:02:11]} 14. Kf1 {[%clk 0:02:39]}  h6 {[%clk 0:01:56]} 15. Rac1 {[%clk 0:02:36]}  Kb8 {[%clk 0:01:39]} 16. d5 {[%clk 0:02:24]}  Nb4 {[%clk 0:01:21]} 17. Rd2 {[%clk 0:01:25]}  Nbxd5 {[%clk 0:01:15]} 18. Nxd5 {[%clk 0:01:24]}  Rxd5 {[%clk 0:01:10]} 19. Rdc2 {[%clk 0:01:21]}  c6 {[%clk 0:01:09]} 20. h3 {[%clk 0:01:20]}  Red8 {[%clk 0:01:08]} 21. Ke2 {[%clk 0:01:03]}  Re8+ {[%clk 0:01:00]} 22. Kf1 {[%clk 0:01:03]}  Red8 {[%clk 0:01:01]} 23. Ke2 {[%clk 0:01:03]}  a6 {[%clk 0:00:57]} 24. Re1 {[%clk 0:00:49]}  Re8+ {[%clk 0:00:54]} 25. Kf1 {[%clk 0:00:49]}  Rxe1+ {[%clk 0:00:54]} 26. Kxe1 {[%clk 0:00:50]}  Kc7 {[%clk 0:00:51]} 27. Re2 {[%clk 0:00:50]}  Rd7 {[%clk 0:00:47]} 28. g4 {[%clk 0:00:38]}  Nd5 {[%clk 0:00:44]} 29. Ne5 {[%clk 0:00:27]}  Re7 {[%clk 0:00:42]} 30. f4 {[%clk 0:00:27]}  Nxf4 {[%clk 0:00:31]} 31. Re3 {[%clk 0:00:21]}  Ng2+ {[%clk 0:00:31]} 0-1

[Event "November 21 Early 2023"]
[Site "https://www.chess.com"]
[Date "2023.11.21"]
[Round "8"]
[White "Luukkonen, Tommi"]
[Black "Minina, Veronika"]
[Result "1-0"]
[Board "154"]
[TimeControl "180+1"]
[WhiteFideId "501808"]
[BlackFideId "4174780"]
[WhiteElo "2219"]
[BlackElo "1905"]
[WhiteTeam "FIN"]
[BlackTeam "RUS"]
[WhiteClock "0:01:30"]
[BlackClock "0:00:08"]

1. e4 {[%clk 0:03:00]}  c5 {[%clk 0:02:59]} 2. Nf3 {[%clk 0:02:59]}  Nc6 {[%clk 0:02:59]} 3. Bb5 {[%clk 0:02:58]}  g6 {[%clk 0:02:58]} 4. Bxc6 {[%clk 0:02:58]}  dxc6 {[%clk 0:02:55]} 5. d3 {[%clk 0:02:57]}  Bg7 {[%clk 0:02:54]} 6. h3 {[%clk 0:02:58]}  e5 {[%clk 0:02:54]} 7. Be3 {[%clk 0:02:58]}  b6 {[%clk 0:02:53]} 8. Nbd2 {[%clk 0:02:56]}  Ne7 {[%clk 0:02:53]} 9. Nc4 {[%clk 0:02:55]}  Qc7 {[%clk 0:02:51]} 10. O-O {[%clk 0:02:50]}  O-O {[%clk 0:02:50]} 11. a3 {[%clk 0:02:49]}  a5 {[%clk 0:02:47]} 12. b4 {[%clk 0:02:47]}  axb4 {[%clk 0:02:08]} 13. axb4 {[%clk 0:02:46]}  Rxa1 {[%clk 0:01:58]} 14. Qxa1 {[%clk 0:02:46]}  cxb4 {[%clk 0:01:57]} 15. Bxb6 {[%clk 0:02:44]}  Qb7 {[%clk 0:01:55]} 16. Bc5 {[%clk 0:02:43]}  f6 {[%clk 0:01:47]} 17. Rb1 {[%clk 0:02:41]}  Rd8 {[%clk 0:01:45]} 18. Rxb4 {[%clk 0:02:40]}  Qd7 {[%clk 0:01:41]} 19. Nd6 {[%clk 0:02:36]}  Bf8 {[%clk 0:01:29]} 20. Qb2 {[%clk 0:02:16]}  Qe6 {[%clk 0:01:27]} 21. Nxc8 {[%clk 0:01:57]}  Nxc8 {[%clk 0:01:22]} 22. Bxf8 {[%clk 0:01:56]}  Kxf8 {[%clk 0:01:19]} 23. Rb7 {[%clk 0:01:55]}  Rd7 {[%clk 0:01:07]} 24. Rb8 {[%clk 0:01:54]}  Ra7 {[%clk 0:01:05]} 25. Qb6 {[%clk 0:01:45]}  Ra1+ {[%clk 0:00:35]} 26. Kh2 {[%clk 0:01:44]}  Kf7 {[%clk 0:00:08]} 27. Qd8 {[%clk 0:01:30]} 1-0